bitfinex/quotes_ETHUSD_20250924
["timestamp","ask_amount","ask_price","bid_price","bid_amount"]
[1758726060542,3.44256093,4201.6,4201.0,0.002]
[1758726060543,2.38025271,4201.3,4201.0,0.002]
[1758726060746,2.38032896,4201.1,4201.0,0.002]
[1758726061052,3.66466054,4201.1,4201.0,0.002]
[1758726061465,4.13126054,4201.1,4201.0,0.002]
[1758726061620,2.82592896,4201.1,4201.0,0.002]
[1758726061826,2.38032896,4201.1,4201.0,0.002]
[1758726062047,0.51304402,4201.4,4201.0,0.002]
[1758726062250,2.3802723,4201.2,4201.1,4.035]
[1758726062438,2.90087543,4201.2,4201.1,4.035]
[1758726062640,3.34647543,4201.2,4201.1,4.035]
[1758726063077,2.90087543,4201.2,4201.1,4.035]
[1758726063379,2.38019539,4201.4,4201.1,4.035]
[1758726063522,2.38011013,4201.5,4201.3,8.08273416]
[1758726063725,2.38011013,4201.5,4201.4,4.035]
[1758726063925,2.38010234,4201.5,4201.4,4.035]
[1758726064521,0.0202,4201.9,4201.4,4.2636]
[1758726064724,0.0202,4201.9,4201.6,8.08273416]
[1758726064923,0.0202,4201.9,4201.7,4.035]
[1758726065124,0.0202,4201.9,4201.8,2.00579932]
[1758726065364,0.0202,4201.9,4201.8,1.982]
[1758726065527,0.0202,4201.9,4201.8,2.2106]
[1758726065720,0.0202,4201.9,4201.8,2.23439932]
[1758726065721,2.40007577,4201.9,4201.8,2.23439932]
[1758726065942,0.0202,4201.9,4201.8,2.6842]
[1758726066558,0.0202,4201.9,4201.8,2.2106]
[1758726066758,2.40007577,4201.9,4201.8,2.2106]
[1758726067062,0.0202,4201.9,4201.8,2.6842]
[1758726067364,2.40007577,4201.9,4201.8,1.982]
[1758726067548,2.40007577,4201.9,4201.4,1.982]
[1758726067549,2.3799324,4201.8,4201.4,1.982]
[1758726067751,0.4658,4201.9,4201.5,4.035]
[1758726067935,2.38004302,4201.7,4201.5,4.035]
[1758726068137,2.84569106,4201.9,4201.5,4.035]
[1758726068360,2.38004569,4201.6,4201.5,4.035]
[1758726068742,0.0202,4201.9,4201.5,4.05880102]
[1758726068926,0.0202,4201.9,4201.7,8.08273416]
[1758726069130,0.0202,4201.9,4201.8,4.035]
[1758726069367,0.0202,4201.9,4201.8,4.2636]
[1758726069542,0.0202,4201.9,4201.8,4.40579932]
[1758726069955,0.0202,4201.9,4201.8,4.382]
[1758726070157,0.0202,4201.9,4201.8,4.1534]
[1758726070638,2.40007577,4201.9,4201.8,4.1534]
[1758726070841,0.0202,4201.9,4201.8,4.1534]
[1758726071364,2.40007577,4201.9,4201.8,4.1534]
[1758726072049,0.93488605,4201.9,4201.0,0.002]
[1758726072372,2.38010234,4201.5,4201.1,4.035]
[1758726072538,2.3802723,4201.2,4201.1,3.985]
[1758726072886,2.8378723,4201.2,4201.1,3.985]
[1758726073048,2.3802723,4201.2,4201.1,3.985]
[1758726073254,3.30475543,4201.2,4201.1,3.985]
[1758726073454,3.32575543,4201.2,4201.1,3.985]
[1758726074654,3.32575543,4201.2,4201.0,0.002]
[1758726074655,2.37952896,4201.1,4201.0,0.002]
[1758726074844,2.37952896,4201.1,4201.0,1.749]
[1758726075045,2.81612896,4201.1,4201.0,1.749]
[1758726075276,3.3845574,4201.1,4201.0,1.749]
[1758726077481,2.9479574,4201.1,4201.0,1.749]
[1758726078000,2.37952896,4201.1,4201.0,1.749]
[1758726078298,2.37952896,4201.1,4201.0,2.4263]
[1758726078444,2.37952896,4201.1,4201.0,1.9802]
[1758726078644,2.37952896,4201.1,4201.0,1.749]
[1758726080084,2.38028818,4201.2,4201.0,1.749]
[1758726080259,2.38032896,4201.1,4201.0,1.749]
[1758726080461,2.38032896,4201.1,4201.0,1.9802]
[1758726080660,2.38032896,4201.1,4201.0,2.4263]
[1758726081065,0.1184,4201.3,4201.0,2.4263]
[1758726081387,2.38027687,4201.2,4201.1,0.6773]
[1758726081892,0.1184,4201.3,4201.1,0.6773]
[1758726082049,0.1184,4201.3,4201.0,1.749]
[1758726082050,2.3802723,4201.2,4201.0,1.749]
[1758726082392,2.38032896,4201.1,4201.0,1.749]
[1758726083287,0.1184,4201.3,4201.0,1.749]
[1758726083789,0.1184,4201.3,4201.1,0.2312]
[1758726083993,0.001,4201.5,4201.2,0.7957]
[1758726084291,0.001,4201.5,4201.3,0.02380215]
[1758726084449,0.001,4201.5,4201.3,0.6773]
[1758726084654,2.38111404,4201.5,4201.4,0.2312]
[1758726084866,0.001,4201.5,4201.4,0.2312]
[1758726085074,2.38110234,4201.5,4201.4,0.2312]
[1758726085272,0.001,4201.5,4201.4,0.2312]
[1758726085472,0.001,4201.5,4201.4,0.6773]
[1758726085998,0.001,4201.5,4201.4,3.17585899]
[1758726086353,0.001,4201.5,4201.4,0.3496]
[1758726086550,0.001,4201.5,4201.4,0.7957]
[1758726086782,0.001,4201.5,4201.4,3.17585899]
[1758726086990,0.001,4201.5,4201.4,0.7957]
[1758726087306,0.001,4201.5,4201.4,3.19966057]
[1758726087497,0.001,4201.5,4201.4,0.7957]
[1758726087708,0.001,4201.5,4201.4,3.19966057]
[1758726088423,0.001,4201.5,4201.4,3.05745899]
[1758726089284,0.001,4201.5,4201.4,7.09145899]
[1758726090189,0.001,4201.5,4201.4,9.07345899]
[1758726090584,0.001,4201.5,4201.4,6.2472]
[1758726090986,0.001,4201.5,4201.4,1.982]
[1758726091188,0.001,4201.5,4201.4,6.016]
[1758726091885,2.38110234,4201.5,4201.4,6.016]
[1758726092384,0.001,4201.5,4201.4,6.016]
[1758726093841,0.001,4201.5,4201.4,6.2472]
[1758726094700,0.001,4201.5,4201.4,6.016]
[1758726094901,0.001,4201.5,4201.4,6.2472]
[1758726095210,2.38110234,4201.5,4201.4,6.2472]
[1758726095411,0.001,4201.5,4201.4,6.2472]
[1758726095609,2.38110234,4201.5,4201.4,6.2472]
[1758726095842,2.38110234,4201.5,4201.4,6.016]
[1758726096527,0.001,4201.5,4201.4,6.016]
[1758726096722,0.001,4201.5,4201.4,6.2472]
[1758726098291,2.38023702,4201.3,4201.0,0.002]
[1758726098492,2.38032896,4201.1,4201.0,0.002]
[1758726098707,2.38032896,4201.1,4201.0,4.1534]
[1758726099593,2.81692896,4201.1,4201.0,4.035]
[1758726100540,2.83792896,4201.1,4201.0,4.035]
[1758726100831,3.35974556,4201.1,4201.0,4.035]
[1758726101048,3.33874556,4201.1,4201.0,4.035]
[1758726101696,3.33794556,4201.1,4201.0,4.035]
[1758726102854,0.23910876,4201.5,4201.0,4.035]
[1758726103011,0.1184,4201.4,4201.1,0.6887]
[1758726103376,2.49860293,4201.4,4201.2,0.2472]
[1758726103510,0.1184,4201.4,4201.3,4.30300215]
[1758726103712,0.001,4201.5,4201.3,4.8391]
[1758726103896,0.001,4201.5,4201.4,0.6887]
[1758726104639,0.001,4201.5,4201.4,0.2472]
[1758726104796,2.38015899,4201.4,4201.3,0.1184]
[1758726105146,2.90235176,4201.4,4201.3,4.1504]
[1758726105342,2.38015899,4201.4,4201.3,4.1504]
[1758726105933,0.001,4201.5,4201.3,4.1504]
[1758726106645,2.38015899,4201.4,4201.3,4.1504]
[1758726107236,2.84085899,4201.4,4201.3,4.032]
[1758726107446,2.98025899,4201.4,4201.3,4.032]
[1758726107600,3.51639034,4201.4,4201.3,4.032]
[1758726107936,2.38031879,4201.2,4201.0,0.002]
[1758726108241,2.38021564,4201.3,4201.1,4.032]
[1758726108531,2.3802723,4201.2,4201.1,4.032]
[1758726108844,2.38032896,4201.1,4201.0,0.002]
[1758726109001,2.38032896,4201.1,4201.0,4.034]
[1758726109803,2.38032896,4201.1,4201.0,0.002]
[1758726110038,0.65453135,4201.4,4201.0,4.034]
[1758726110202,2.38032896,4201.1,4201.0,4.034]
[1758726111728,2.84102896,4201.1,4201.0,4.034]
[1758726111930,2.95942896,4201.1,4201.0,4.034]
[1758726112321,0.001,4201.5,4201.0,4.7227]
[1758726112526,0.001,4201.5,4201.1,0.6887]
[1758726112720,0.001,4201.5,4201.2,2.38025579]
[1758726112949,0.001,4201.5,4201.4,2.38015899]
[1758726113411,0.001,4201.5,4201.4,3.06885899]
[1758726115147,0.001,4201.5,4201.3,6.41220163]
[1758726115335,0.001,4201.5,4201.3,4.032]
[1758726115712,0.001,4201.5,4201.4,6.013]
[1758726116121,2.37982483,4202.0,4201.4,6.013]
[1758726116727,2.38076464,4202.1,4201.4,6.013]
[1758726116949,0.001,4202.1,4201.4,6.013]
[1758726117160,2.37983195,4202.0,4201.4,6.013]
[1758726117856,0.001,4202.1,4201.4,6.013]
[1758726118039,2.37998266,4201.8,4201.4,6.013]
[1758726118241,2.37992544,4201.9,4201.4,6.013]
[1758726118455,2.38006892,4201.6,4201.4,6.013]
[1758726118657,0.001,4202.1,4201.4,6.013]
[1758726118658,0.4617,4202.1,4201.4,6.013]
[1758726118858,2.38009218,4201.6,4201.4,6.013]
[1758726119443,2.3799454,4201.8,4201.4,6.013]
[1758726119775,2.37998905,4201.7,4201.4,6.013]
[1758726119972,2.37990626,4201.9,4201.4,6.013]
[1758726120161,0.001,4202.1,4201.4,6.013]
[1758726120474,0.001,4202.1,4201.8,2.37993014]
[1758726120661,0.001,4202.1,4201.9,6.4346345]
[1758726120838,0.001,4202.1,4201.9,4.031]
[1758726121034,0.001,4202.1,4202.0,0.6661]
[1758726121362,0.001,4202.1,4202.0,3.04591913]
[1758726122350,0.001,4202.1,4202.0,3.16431913]
[1758726122634,0.001,4202.1,4202.0,3.25968904]
[1758726122860,0.001,4202.1,4202.0,3.28348723]
[1758726123875,0.001,4202.1,4202.0,6.28348723]
[1758726124175,0.001,4202.1,4202.0,6.25968904]
[1758726126387,0.001,4202.1,4202.0,6.14128904]
[1758726126945,0.001,4202.1,4202.0,6.93328904]
[1758726127280,0.001,4202.4,4202.2,26.75749667]
[1758726127440,0.001,4202.4,4202.2,32.76949667]
[1758726127645,0.001,4202.4,4202.2,33.43559667]
[1758726128379,0.001,4202.4,4202.2,33.55447416]
[1758726128888,0.0002,4202.3,4202.2,33.43559667]
[1758726129194,0.001,4202.4,4202.3,6.17164923]
[1758726129343,0.001,4202.5,4202.4,6.17159261]
[1758726129549,0.001,4202.5,4202.4,31.92983074]
[1758726130350,0.001,4202.5,4202.4,40.10583074]
[1758726130773,0.001,4202.5,4202.4,27.90083074]
[1758726130974,0.001,4202.5,4202.4,40.10583074]
[1758726131695,0.001,4202.5,4202.4,33.91183074]
[1758726131988,0.001,4202.5,4202.4,33.11983074]
[1758726132582,0.001,4202.5,4202.4,12.53403993]
[1758726133302,0.001,4202.5,4202.4,13.32603993]
[1758726134760,0.041,4203.9,4202.4,13.32603993]
[1758726134761,0.02,4203.9,4202.5,3.0]
[1758726134969,0.02,4203.9,4202.9,31.24335222]
[1758726135198,0.02,4203.9,4202.9,35.27135222]
[1758726135363,0.02,4203.9,4202.9,35.36668509]
[1758726135566,0.02,4203.9,4202.9,36.05938509]
[1758726136176,0.02,4203.9,4202.9,36.17778509]
[1758726136490,0.4787,4203.9,4202.9,36.17778509]
[1758726137289,0.02,4203.9,4202.9,35.72598509]
[1758726137492,0.4587,4203.7,4202.9,35.72598509]
[1758726138295,0.4587,4203.7,4202.9,36.17778509]
[1758726139406,0.4587,4203.7,4202.9,34.93398509]
[1758726139750,0.4587,4203.7,4202.9,30.66508509]
[1758726140051,0.02,4203.9,4202.9,11.60104239]
[1758726140052,0.4587,4203.3,4202.9,11.60104239]
[1758726140283,0.4587,4203.3,4202.9,9.22173287]
[1758726140472,0.4587,4203.3,4202.9,11.60104239]
[1758726141053,0.4587,4203.3,4202.9,5.59304239]
[1758726141251,0.4587,4203.3,4202.9,11.60104239]
[1758726142991,0.4587,4203.7,4202.9,11.84194239]
[1758726143291,2.37883688,4203.8,4202.9,11.60104239]
[1758726143591,0.4587,4203.4,4202.9,9.22173287]
[1758726143796,0.4587,4203.4,4202.9,11.60104239]
[1758726144291,0.4587,4203.4,4202.9,9.22173287]
[1758726144477,0.4597,4203.0,4202.9,9.22173287]
[1758726144658,0.4597,4203.0,4202.9,17.29770221]
[1758726144864,0.4597,4203.0,4202.9,19.67701173]
[1758726145473,0.4597,4203.0,4202.9,11.28970221]
[1758726145696,0.4597,4203.0,4202.9,17.29770221]
[1758726145905,0.001,4203.0,4202.9,19.67701173]
[1758726146200,0.001,4203.0,4202.9,11.60104239]
[1758726146408,0.001,4203.0,4202.9,11.84194239]
[1758726146702,0.001,4203.0,4202.9,12.29374239]
[1758726147909,0.001,4203.0,4202.9,11.60104239]
[1758726148068,0.001,4203.0,4202.9,12.29374239]
[1758726148692,0.001,4203.0,4202.9,5.59304239]
[1758726148898,0.001,4203.0,4202.9,11.60004239]
[1758726149428,0.001,4203.0,4202.9,5.59304239]
[1758726149721,0.001,4203.0,4202.9,19.67601173]
[1758726150293,0.001,4203.0,4202.9,19.91691173]
[1758726150670,0.001,4203.0,4202.9,20.36871173]
[1758726150870,0.001,4203.0,4202.9,19.91691173]
[1758726151109,0.001,4203.0,4202.9,19.67601173]
[1758726151411,0.001,4203.0,4202.9,19.91691173]
[1758726151572,0.001,4203.0,4202.9,13.66901173]
[1758726151771,0.001,4203.0,4202.9,19.67601173]
[1758726151972,0.001,4203.0,4202.9,11.60004239]
[1758726153686,0.001,4203.0,4202.9,11.84094239]
[1758726154507,0.001,4203.0,4202.9,12.29274239]
[1758726155876,0.0002,4203.0,4202.9,11.84094239]
[1758726156907,0.0002,4203.0,4202.9,12.29274239]
[1758726157520,0.0002,4203.0,4202.9,11.60004239]
[1758726158722,0.0002,4203.0,4202.9,12.29274239]
[1758726159271,0.0002,4203.0,4202.9,11.84094239]
[1758726159930,0.0002,4203.0,4202.9,9.61804239]
[1758726160122,0.0002,4203.0,4202.9,11.59904239]
[1758726160329,0.0002,4203.0,4202.9,11.83994239]
[1758726160698,0.0002,4203.0,4202.9,12.29174239]
[1758726160896,0.001,4203.2,4203.1,2.3791963]
[1758726161120,0.001,4203.2,4203.1,17.5039576]
[1758726161401,0.001,4203.2,4203.1,18.17286564]
[1758726161610,0.001,4203.2,4203.1,18.26820191]
[1758726162028,0.001,4203.2,4203.1,17.81640191]
[1758726163010,0.001,4203.2,4203.1,17.57550191]
[1758726163201,0.001,4203.2,4203.1,18.27370191]
[1758726164598,0.001,4203.2,4203.1,17.82190191]
[1758726164797,0.001,4203.2,4203.1,17.57550191]
[1758726165641,0.001,4203.2,4203.1,17.82190191]
[1758726166129,0.001,4203.2,4203.1,9.49953257]
[1758726166331,0.4479,4203.2,4203.1,3.09533627]
[1758726166705,0.4689,4203.2,4203.1,2.07633627]
[1758726167056,0.4689,4203.2,4203.1,9.10033627]
[1758726167846,0.4689,4203.2,4203.1,6.10033627]
[1758726168855,0.4689,4203.2,4203.1,14.17630561]
[1758726169082,0.4689,4203.2,4203.1,0.09533627]
[1758726169293,0.75379639,4203.2,4203.1,0.09533627]
[1758726169464,2.8480397,4203.2,4203.1,4.11933627]
[1758726169633,2.8480397,4203.2,4203.1,4.024]
[1758726170064,2.8480397,4203.2,4203.1,12.09996934]
[1758726170065,0.4689,4203.2,4203.1,12.09996934]
[1758726170263,2.8480397,4203.2,4203.1,12.09996934]
[1758726170730,0.001,4203.2,4203.1,12.09996934]
[1758726170926,0.001,4203.2,4203.1,14.47916564]
[1758726171735,0.001,4203.2,4203.1,14.92706564]
[1758726171934,0.001,4203.2,4203.1,18.62526564]
[1758726173170,0.001,4203.2,4203.1,18.74366564]
[1758726174539,0.001,4203.2,4203.1,18.29186564]
[1758726174732,0.001,4203.2,4203.1,5.9454963]
[1758726174957,0.001,4203.2,4203.1,20.02546564]
[1758726176271,0.4479,4203.2,4203.1,9.5703]
[1758726176446,2.8480397,4203.2,4203.1,6.4519]
[1758726176650,0.4689,4203.2,4203.1,6.004]
[1758726176969,0.75379847,4203.2,4203.1,6.004]
[1758726177148,3.13293817,4203.2,4203.1,6.004]
[1758726177345,0.75379847,4203.2,4203.1,6.004]
[1758726177577,0.4689,4203.2,4203.1,6.004]
[1758726177757,0.4479,4203.2,4203.1,6.004]
[1758726178072,0.4689,4203.2,4203.1,6.004]
[1758726178268,0.4689,4203.2,4202.9,8.07596934]
[1758726178481,0.022,4203.2,4203.0,6.004]
[1758726178636,0.4469,4203.1,4203.0,6.004]
[1758726180191,0.001,4203.2,4203.0,6.004]
[1758726180356,0.4461,4203.2,4203.0,6.004]
[1758726180557,0.4451,4203.1,4203.0,6.004]
[1758726180759,0.4451,4203.1,4202.8,0.002]
[1758726180760,2.845335,4203.1,4202.8,0.002]
[1758726181088,2.37930952,4202.9,4202.8,0.002]
[1758726181382,2.37930952,4202.9,4202.8,4.025]
[1758726181581,2.84540952,4202.9,4202.8,4.025]
[1758726182286,0.4451,4202.9,4202.8,4.025]
[1758726182500,2.82440952,4202.9,4202.8,4.025]
[1758726183004,0.4443,4202.9,4202.8,4.025]
[1758726183304,2.37920277,4203.1,4202.8,4.025]
[1758726183605,0.001,4203.2,4202.8,4.025]
[1758726183804,0.022,4203.2,4202.8,4.025]
[1758726183987,0.001,4203.2,4202.8,4.025]
[1758726184192,2.37925291,4203.0,4202.8,4.025]
[1758726184390,2.6193782,4203.0,4202.8,4.025]
[1758726184589,2.37930952,4202.9,4202.8,4.025]
[1758726184791,2.40030952,4202.9,4202.8,4.025]
[1758726185170,2.84540952,4202.9,4202.8,4.025]
[1758726185365,0.4661,4202.9,4202.8,4.025]
[1758726185678,2.84540952,4202.9,4202.8,4.025]
[1758726186083,3.36797021,4202.9,4202.8,4.025]
[1758726186805,3.36797021,4202.9,4202.8,0.002]
[1758726187220,15.23593955,4202.9,4202.8,0.002]
[1758726187372,15.74844052,4202.9,4202.8,0.002]
[1758726187571,16.38883122,4202.9,4202.8,0.002]
[1758726187770,7.67247118,4202.9,4202.8,0.002]
[1758726188107,8.31285839,4202.9,4202.8,0.002]
[1758726188697,7.67247118,4202.9,4202.8,0.002]
[1758726193886,2.37976249,4202.1,4201.9,0.002]
[1758726194117,2.61773874,4202.1,4201.9,0.002]
[1758726194283,3.07613874,4202.1,4201.9,0.002]
[1758726195508,3.09713874,4202.1,4201.9,0.002]
[1758726199014,2.38004569,4201.6,4201.5,0.002]
[1758726199235,3.64804743,4201.6,4201.5,0.002]
[1758726199597,4.12744743,4201.6,4201.5,0.002]
[1758726204111,4.10644743,4201.6,4201.5,0.002]
[1758726204609,4.61745994,4201.6,4201.5,0.002]
[1758726205020,4.15905994,4201.6,4201.5,0.002]
[1758726205223,2.33004569,4201.6,4201.5,0.002]
[1758726205446,2.33004569,4201.6,4201.5,0.2331]
[1758726205757,2.33004569,4201.6,4201.5,0.002]
[1758726207155,2.78844569,4201.6,4201.5,0.002]
[1758726207717,2.33004569,4201.6,4201.5,0.002]
[1758726207925,3.6441387,4201.6,4201.5,0.002]
[1758726208144,4.63445143,4201.6,4201.5,0.002]
[1758726208562,4.61345143,4201.6,4201.5,0.002]
[1758726208923,3.36305143,4201.6,4201.5,0.002]
[1758726209125,2.33004569,4201.6,4201.5,0.6946]
[1758726210143,2.32924569,4201.6,4201.5,0.2331]
[1758726211169,2.32924569,4201.6,4201.5,0.6946]
[1758726211724,2.32924569,4201.6,4201.5,0.2331]
[1758726212327,2.32924569,4201.6,4201.5,0.002]
[1758726212733,3.33075379,4201.6,4201.5,0.002]
[1758726213137,2.85135379,4201.6,4201.5,0.002]
[1758726213487,2.32924569,4201.6,4201.5,0.6946]
[1758726214784,2.32924569,4201.6,4201.5,0.2331]
[1758726215349,2.32924569,4201.6,4201.5,0.002]
[1758726215752,2.84110932,4201.6,4201.5,0.002]
[1758726216054,2.32924569,4201.6,4201.5,0.002]
[1758726216283,3.88553936,4201.6,4201.5,0.002]
[1758726216565,4.52475878,4201.6,4201.5,0.002]
[1758726216967,3.88553936,4201.6,4201.5,0.002]
[1758726217340,3.90653936,4201.6,4201.5,0.002]
[1758726217880,3.88553936,4201.6,4201.5,0.002]
[1758726218182,4.75997331,4201.6,4201.5,0.002]
[1758726218388,3.90653936,4201.6,4201.5,0.002]
[1758726218681,3.88553936,4201.6,4201.5,0.002]
[1758726219242,3.90653936,4201.6,4201.5,0.002]
[1758726219531,3.88553936,4201.6,4201.5,0.002]
[1758726220788,4.67753936,4201.6,4201.5,0.002]
[1758726220940,4.67853936,4201.6,4201.5,0.002]
[1758726221593,4.69953936,4201.6,4201.5,0.002]
[1758726222144,5.98336295,4201.6,4201.5,0.002]
[1758726223245,2.38032896,4201.1,4201.0,0.002]
[1758726223448,4.22425307,4201.1,4201.0,0.002]
[1758726223842,8.71945307,4201.1,4201.0,0.002]
[1758726224252,8.71945307,4201.1,4200.6,0.002]
[1758726224253,2.38055562,4200.7,4200.6,1e-08]
[1758726224473,5.89241925,4200.7,4200.6,1e-08]
[1758726224775,7.25022797,4200.7,4200.6,0.24750001]
[1758726225345,4.25022797,4200.7,4200.6,0.70440001]
[1758726225550,4.89218504,4200.7,4200.6,0.70440001]
[1758726226057,3.53437632,4200.7,4200.6,0.70440001]
[1758726226256,2.38055562,4200.7,4200.6,0.70440001]
[1758726229177,2.38055562,4200.7,4200.6,1e-08]
[1758726229356,2.38055562,4200.7,4200.6,0.70440001]
[1758726230568,2.38015504,4201.5,4200.6,0.70440001]
[1758726230569,0.51186363,4200.8,4200.6,0.70440001]
[1758726230773,2.38050342,4200.8,4200.6,1e-08]
[1758726230970,2.38050342,4200.8,4200.7,0.7044]
[1758726231371,2.89409911,4200.9,4200.7,0.7044]
[1758726231574,0.4742,4201.8,4200.8,0.7044]
[1758726231575,2.38036201,4201.1,4200.8,0.7044]
[1758726231751,0.51363717,4201.2,4200.9,0.7044]
[1758726231952,2.3803094,4201.2,4201.0,0.7044]
[1758726232149,2.3803094,4201.2,4200.6,1e-08]
[1758726232150,2.3803094,4201.2,4201.1,0.7044]
[1758726232576,0.001,4201.6,4201.1,0.7044]
[1758726232791,0.51463717,4201.6,4201.2,0.72820272]
[1758726233091,0.001,4201.6,4201.3,0.7044]
[1758726233288,0.001,4201.6,4201.4,0.2475]
[1758726233489,2.38014138,4201.5,4201.4,0.7044]
[1758726234060,2.38014138,4201.5,4201.4,0.2475]
[1758726234387,2.38014138,4201.5,4201.4,0.7044]
[1758726235437,2.38106184,4201.6,4201.4,0.7044]
[1758726235588,2.38010234,4201.5,4201.4,0.4569]
[1758726235774,0.001,4201.6,4201.3,4.02]
[1758726236080,0.001,4201.6,4201.4,0.2475]
[1758726236284,0.001,4201.6,4201.4,0.7044]
[1758726236492,2.38105438,4201.6,4201.4,0.7044]
[1758726236684,0.001,4201.6,4201.5,0.7044]
[1758726237079,2.38104569,4201.6,4201.5,0.7044]
[1758726237285,0.0002,4201.6,4201.5,0.7044]
[1758726237807,2.38024569,4201.6,4201.5,0.7044]
[1758726238691,2.38024569,4201.6,4201.5,0.7044]
[1758726239493,2.38024569,4201.6,4201.5,0.2475]
[1758726239672,2.38024569,4201.6,4201.5,0.7095]
[1758726240210,2.38024569,4201.6,4201.5,0.2475]
[1758726240679,2.38024569,4201.6,4201.5,0.7095]
[1758726241284,0.0002,4201.6,4201.5,0.7095]
[1758726241500,2.38024569,4201.6,4201.5,0.7095]
[1758726241694,0.0002,4201.6,4201.5,0.7095]
[1758726242209,2.38024569,4201.6,4201.2,0.1184]
[1758726242414,0.0002,4201.6,4201.3,6.7098]
[1758726242709,0.0002,4201.6,4201.4,0.7088]
[1758726242906,2.38010234,4201.5,4201.4,0.7088]
[1758726243108,2.38025746,4201.6,4201.4,0.7088]
[1758726243411,2.38025746,4201.6,4201.3,6.001]
[1758726243412,2.38024569,4201.6,4201.5,0.7088]
[1758726244807,2.38024569,4201.6,4201.5,0.2468]
[1758726245178,2.38024569,4201.6,4201.5,0.7088]
[1758726245513,0.0002,4201.6,4201.5,0.7088]
[1758726245904,2.38024569,4201.6,4201.5,0.7088]
[1758726246334,0.0002,4201.6,4201.5,0.7088]
[1758726246605,0.0002,4201.6,4201.5,10.06487004]
[1758726246789,0.0002,4201.6,4201.5,0.3652]
[1758726246994,0.0002,4201.6,4200.9,0.2468]
[1758726247316,2.38032896,4201.1,4201.0,6.0]
[1758726247489,2.38030653,4201.2,4201.0,6.0]
[1758726247689,0.1184,4201.4,4201.0,6.0]
[1758726247690,2.38032896,4201.1,4201.0,6.0]
[1758726247891,3.31502342,4201.1,4201.0,4.018]
[1758726248080,3.45442342,4201.1,4201.0,4.018]
[1758726248281,2.38055562,4200.7,4200.6,1e-08]
[1758726248513,2.49895562,4200.7,4200.6,4.01800001]
[1758726248681,2.96675562,4200.7,4200.6,4.01800001]
[1758726248882,3.55273387,4200.7,4200.6,4.01800001]
[1758726249427,3.53173387,4200.7,4200.6,4.01800001]
[1758726250403,3.41333387,4200.7,4200.6,4.01800001]
[1758726252413,3.41333387,4200.7,4200.6,1e-08]
[1758726253180,2.96653387,4200.7,4200.6,1e-08]
[1758726258722,3.43173387,4200.7,4200.6,1e-08]
[1758726261787,3.45273387,4200.7,4200.6,1e-08]
[1758726262435,3.43173387,4200.7,4200.6,1e-08]
[1758726264629,3.43093387,4200.7,4200.6,1e-08]
[1758726265847,2.38100907,4199.9,4199.7,0.002]
[1758726266145,2.85720364,4199.9,4199.7,0.002]
[1758726266307,3.32240364,4199.9,4199.7,0.002]
[1758726267231,2.85720364,4199.9,4199.7,0.002]
[1758726267929,10.94509623,4199.9,4199.7,0.002]
[1758726268094,11.9224536,4199.9,4199.7,0.002]
[1758726268296,2.38106576,4199.8,4199.7,1e-08]
[1758726268527,5.54021474,4199.8,4199.7,1e-08]
[1758726268696,5.54021474,4199.8,4198.2,1.983]
[1758726268697,3.792,4199.7,4198.1,0.2545]
[1758726268894,2.38197322,4198.2,4198.1,0.2545]
[1758726269125,2.84717322,4198.2,4198.1,0.02]
[1758726269322,4.58046956,4198.2,4198.1,0.02]
[1758726269642,2.3825975,4197.1,4197.0,4.016]
[1758726269845,2.38224277,4197.8,4197.0,4.6929]
[1758726269846,2.38242276,4197.5,4197.0,4.6929]
[1758726270067,2.38242721,4197.4,4197.1,0.6769]
[1758726270289,4.016,4197.9,4197.0,4.016]
[1758726270424,9.29828185,4197.8,4197.0,4.016]
[1758726270620,9.29828185,4197.8,4197.0,4.4584]
[1758726270917,1.21038926,4197.8,4197.1,0.6769]
[1758726271122,2.38191688,4198.3,4197.2,0.6769]
[1758726271364,4.016,4198.2,4197.3,0.6769]
[1758726271654,2.38242721,4197.4,4197.3,0.6769]
[1758726271860,2.38238606,4197.5,4197.3,0.6769]
[1758726272040,2.38202996,4198.1,4197.3,0.6769]
[1758726272243,2.38242721,4197.4,4197.3,0.6769]
[1758726272563,2.38242721,4197.4,4197.3,0.2345]
[1758726273043,2.38267731,4197.0,4196.9,4.017]
[1758726273242,2.38267731,4197.0,4196.7,2.2175]
[1758726273243,2.38276782,4196.8,4196.6,0.4424]
[1758726273570,2.38265427,4197.0,4196.9,0.2345]
[1758726274425,2.38265427,4197.0,4196.9,0.6769]
[1758726275822,2.38271104,4196.9,4196.8,0.002]
[1758726276026,2.38271104,4196.9,4196.8,0.4444]
[1758726276664,2.38271104,4196.9,4196.8,0.002]
[1758726276871,2.85447751,4196.9,4196.8,0.002]
[1758726277436,3.0,4197.6,4196.8,0.002]
[1758726277654,2.38237045,4197.5,4196.8,0.6789]
[1758726277826,2.38271104,4196.9,4196.8,0.6789]
[1758726278565,2.38269382,4197.0,4196.8,0.6789]
[1758726278862,2.38265427,4197.0,4196.9,0.6769]
[1758726279227,2.38260113,4197.1,4196.9,0.6769]
[1758726279575,0.1184,4197.4,4197.0,0.6769]
[1758726279576,2.38252275,4197.3,4197.0,0.6769]
[1758726279777,2.38231916,4197.6,4197.2,8.08789259]
[1758726279924,2.38226981,4197.7,4197.2,8.20629259]
[1758726280129,0.1184,4198.2,4197.5,0.1184]
[1758726280402,2.38214403,4197.9,4197.6,4.6939]
[1758726280563,0.1184,4198.4,4197.7,0.7953]
[1758726280775,2.38163284,4198.8,4197.8,8.08789259]
[1758726280929,2.38181063,4198.5,4197.9,0.6769]